bitfinex/quotes_SOLUSD_20250809
["timestamp","ask_amount","ask_price","bid_price","bid_amount"]
[1754707798740,0.71,177.91,177.9,44.56240464]
[1754707799059,0.71,177.91,177.9,39.44]
[1754707799257,0.03,177.91,177.9,39.44]
[1754707800938,0.71,177.91,177.9,39.44]
[1754707802856,0.03,177.91,177.9,39.44]
[1754707804045,0.03,177.91,177.9,44.56240464]
[1754707804738,0.03,177.91,177.9,43.438474]
[1754707809649,0.03,177.91,177.9,49.05960946]
[1754707811758,0.03,177.91,177.9,64.16582503]
[1754707813268,0.03,177.91,177.9,90.16582503]
[1754707813958,0.03,177.93,177.92,41.10621557]
[1754707814154,0.03,177.93,177.92,96.79858557]
[1754707814466,0.03,177.93,177.92,97.51858557]
[1754707814944,0.03,177.93,177.92,103.13908916]
[1754707816636,0.03,177.93,177.92,96.98323312]
[1754707818964,0.03,177.93,177.92,91.86497614]
[1754707819667,0.03,177.93,177.92,96.98323312]
[1754707827471,0.03,177.93,177.92,99.23402712]
[1754707828962,0.03,177.93,177.92,99.79607747]
[1754707833785,0.03,177.95,177.93,15.10621557]
[1754707833960,0.03,177.95,177.94,70.33825698]
[1754707834158,0.03,177.97,177.96,41.10621557]
[1754707834484,0.03,177.97,177.96,86.00639657]
[1754707834868,0.03,177.97,177.96,86.66639657]
[1754707835187,0.03,177.97,177.96,92.28563684]
[1754707836572,0.03,177.98,177.96,94.53592484]
[1754707836782,0.03,177.98,177.97,5.77825698]
[1754707837487,0.03,177.98,177.97,11.39718151]
[1754707838758,0.03,177.98,177.97,9.55220748]
[1754707839084,0.03,177.98,177.97,24.65842305]
[1754707839585,0.03,177.98,177.97,26.90858505]
[1754707846677,0.03,177.98,177.97,26.24858505]
[1754707847390,0.71,177.98,177.97,26.24858505]
[1754707847606,0.71,177.98,177.97,23.99842305]
[1754707847776,0.71,177.98,177.97,63.21842305]
[1754707849002,0.71,177.98,177.97,59.9451401]
[1754707849195,0.71,177.98,177.97,63.21842305]
[1754707850881,0.03,177.98,177.97,63.21842305]
[1754707851299,0.03,177.98,177.97,92.6904765]
[1754707851676,0.03,177.98,177.97,90.4403155]
[1754707851876,0.03,177.98,177.97,51.2203155]
[1754707852076,0.03,177.98,177.97,89.7803155]
[1754707852381,0.71,177.98,177.97,89.21842305]
[1754707852796,0.71,177.98,177.97,63.21842305]
[1754707853011,0.71,177.98,177.97,57.59949852]
[1754707853170,0.71,177.98,177.97,63.21842305]
[1754707854681,0.71,177.98,177.97,65.06219145]
[1754707857200,0.71,177.98,177.97,59.9451401]
[1754707857404,0.71,177.98,177.97,65.06219145]
[1754707859192,0.03,177.98,177.97,65.06219145]
[1754707860403,0.03,177.98,177.97,65.72219145]
[1754707860999,0.03,177.98,177.97,65.06219145]
[1754707862888,0.71,177.98,177.97,65.06219145]
[1754707863498,0.03,177.98,177.97,65.06219145]
[1754707863880,0.03,177.98,177.97,65.75219145]
[1754707864503,0.03,177.98,177.97,92.3140839]
[1754707865208,0.03,177.98,177.97,87.25703255]
[1754707865406,0.03,177.98,177.97,92.3740839]
[1754707865612,0.03,177.98,177.97,94.6242459]
[1754707867416,0.65,177.98,177.97,25.90219145]
[1754707867701,0.65,177.98,177.97,65.12219145]
[1754707868922,0.65,177.98,177.97,60.0051401]
[1754707869683,0.03,177.98,177.97,60.0051401]
[1754707869890,0.03,177.98,177.97,65.81219145]
[1754707870597,0.03,177.98,177.97,68.06235245]
[1754707870799,0.03,177.98,177.97,65.81219145]
[1754707872009,0.03,177.98,177.97,68.06235345]
[1754707874294,0.03,177.98,177.97,65.81219145]
[1754707875519,0.03,177.98,177.97,68.06235345]
[1754707876402,0.03,177.98,177.97,65.81219145]
[1754707876906,0.03,177.98,177.97,65.12219145]
[1754707877816,0.71,177.98,177.97,65.12219145]
[1754707878317,0.03,177.98,177.97,65.12219145]
[1754707879018,0.03,177.98,177.97,65.81219145]
[1754707880109,0.03,177.98,177.97,65.12219145]
[1754707881498,0.03,177.98,177.97,65.81219145]
[1754707882198,0.03,177.98,177.97,65.12219145]
[1754707882500,0.71,177.98,177.97,65.12219145]
[1754707882702,0.71,177.98,177.97,63.28029965]
[1754707883813,0.03,177.98,177.97,63.28029965]
[1754707885924,0.71,177.98,177.97,63.28029965]
[1754707887426,0.03,177.98,177.97,63.28029965]
[1754707890728,0.03,177.98,177.97,63.97029965]
[1754707893936,0.03,177.98,177.97,63.28029965]
[1754707894809,0.03,177.98,177.97,60.0051401]
[1754707895020,0.75,177.98,177.97,57.66137512]
[1754707895614,0.75,177.98,177.97,63.28029965]
[1754707896021,0.75,177.98,177.97,60.0051401]
[1754707896240,0.75,177.98,177.97,63.28029965]
[1754707896824,0.03,177.98,177.97,63.28029965]
[1754707899928,0.03,177.98,177.97,60.0051401]
[1754707900117,0.03,177.98,177.97,63.28029965]
[1754707900319,0.75,177.98,177.97,63.28029965]
[1754707900732,0.03,177.98,177.97,63.28029965]
[1754707901531,0.03,177.98,177.97,57.66137512]
[1754707901840,0.75,177.98,177.97,39.28]
[1754707902920,0.75,177.98,177.97,0.06]
[1754707906756,4.02515955,177.98,177.97,0.06]
[1754707907940,9.64376838,177.98,177.97,0.06]
[1754707909846,9.92809152,177.98,177.97,0.06]
[1754707916656,6.65293197,177.98,177.97,0.06]
[1754707916855,9.92809152,177.98,177.97,0.06]
[1754707920451,10.07025309,177.98,177.97,0.06]
[1754707923440,49.29025309,177.98,177.97,0.06]
[1754707927344,48.57025309,177.98,177.97,0.06]
[1754707927743,49.29025309,177.98,177.97,0.06]
[1754707931150,46.01509354,177.98,177.97,0.06]
[1754707931349,49.29025309,177.98,177.97,0.06]
[1754707934569,48.57025309,177.98,177.97,0.06]
[1754707935267,49.29025309,177.98,177.97,0.06]
[1754707941271,48.57025309,177.98,177.97,0.06]
[1754707942569,49.29025309,177.98,177.97,0.06]
[1754707946594,51.54193509,177.98,177.97,0.06]
[1754707950087,53.63295489,177.98,177.97,0.06]
[1754707950688,51.54193509,177.98,177.97,0.06]
[1754707950876,53.63298456,177.98,177.97,0.06]
[1754707951195,58.33788946,177.98,177.97,0.06]
[1754707951517,51.54193509,177.98,177.97,0.06]
[1754707952064,56.24683999,177.98,177.97,0.06]
[1754707952379,58.3388552,177.98,177.97,0.06]
[1754707958193,53.6339503,177.98,177.97,0.06]
[1754707959889,26.0,177.96,177.95,0.06]
[1754707960091,70.99365947,177.96,177.95,0.06]
[1754707960393,71.66365947,177.96,177.95,0.06]
[1754707960969,73.91572147,177.96,177.95,0.06]
[1754707961189,79.53496174,177.96,177.95,0.06]
[1754707963882,79.53539528,177.96,177.95,0.06]
[1754707970992,15.53270028,177.95,177.93,0.06]
[1754707971194,44.99409301,177.94,177.93,0.73]
[1754707971574,47.24653601,177.94,177.93,0.06]
[1754707972098,8.04409728,177.94,177.93,0.06]
[1754707972796,52.86396914,177.94,177.93,0.06]
[1754707975693,53.53396914,177.94,177.93,1e-08]
[1754707975901,14.33396914,177.94,177.93,1e-08]
[1754707976101,15.53270028,177.93,177.91,1e-08]
[1754707976293,49.69031744,177.92,177.91,1e-08]
[1754707976494,50.36031744,177.92,177.91,1e-08]
[1754707976781,47.91435028,177.92,177.91,1e-08]
[1754707977590,53.53485387,177.92,177.91,1e-08]
[1754707979486,57.55789146,177.92,177.91,1e-08]
[1754707979692,50.77484385,177.92,177.91,0.67000001]
[1754707982495,2.252696,177.92,177.91,0.67000001]
[1754707982700,42.47515955,177.92,177.91,0.67000001]
[1754707982912,42.90164426,177.92,177.91,0.67000001]
[1754707983290,48.52214785,177.92,177.91,0.67000001]
[1754707983490,48.09566314,177.92,177.91,0.67000001]
[1754707983810,48.52214785,177.92,177.91,0.67000001]
[1754707985895,42.90164426,177.92,177.91,0.67000001]
[1754707986092,2.252189,177.93,177.91,0.67000001]
[1754707986300,41.452189,177.93,177.91,0.67000001]
[1754707986796,42.47515955,177.93,177.91,0.67000001]
[1754707988827,48.09540048,177.93,177.91,0.67000001]
[1754707991226,44.82024093,177.93,177.91,0.67000001]
[1754707991431,48.09540048,177.93,177.91,0.67000001]
[1754707991909,44.82024093,177.93,177.91,0.67000001]
[1754707994016,44.85024093,177.93,177.91,0.67000001]
[1754707995325,45.27672564,177.93,177.92,0.69]
[1754707995806,39.65648471,177.93,177.92,0.69]
[1754707997331,0.45648471,177.93,177.92,0.69]
[1754708002240,0.03,177.93,177.92,0.69]
[1754708002429,0.03,177.93,177.92,3.96515955]
[1754708007217,0.03,177.93,177.92,0.69]
[1754708007416,0.03,177.93,177.92,3.96515955]
[1754708008437,0.03,177.93,177.92,0.69]
[1754708008646,0.03,177.93,177.92,3.96515955]
[1754708027065,0.03,177.93,177.92,0.69]
[1754708027362,0.03,177.93,177.92,3.96515955]
[1754708027752,0.72,177.93,177.91,1e-08]
[1754708027953,0.03,177.93,177.91,1e-08]
[1754708028148,0.72,177.93,177.91,3.27515956]
[1754708029566,0.72,177.93,177.91,3.95515956]
[1754708030165,0.03,177.93,177.91,3.95515956]
[1754708032048,0.03,177.93,177.91,0.68000001]
[1754708032346,0.03,177.93,177.91,3.95515956]
[1754708033459,0.03,177.93,177.92,3.27515955]
[1754708037875,0.03,177.93,177.91,0.68000001]
[1754708038077,0.72,177.93,177.91,3.95515956]
[1754708038262,0.03,177.93,177.91,3.95515956]
[1754708040079,0.03,177.93,177.91,0.68000001]
[1754708040280,0.72,177.93,177.91,3.27515956]
[1754708040796,0.03,177.93,177.92,3.95515955]
[1754708044272,0.03,177.93,177.92,0.68]
[1754708044468,0.03,177.93,177.92,3.95515955]
[1754708054493,0.71,177.93,177.92,3.27515955]
[1754708054890,0.71,177.93,177.91,3.27515956]
[1754708059902,0.71,177.93,177.91,3.98515956]
[1754708060210,0.71,177.93,177.91,3.27515956]
[1754708063504,6.33019764,177.93,177.91,3.98515956]
[1754708065617,1.10648471,177.92,177.91,1e-08]
[1754708066692,4.38164371,177.92,177.91,1e-08]
[1754708067917,10.0021473,177.92,177.91,1e-08]
[1754708072808,13.27730685,177.92,177.91,1e-08]
[1754708073417,20.08445645,177.92,177.91,1e-08]
[1754708073836,16.8092969,177.92,177.91,1e-08]
[1754708074025,9.3221473,177.92,177.91,1e-08]
[1754708077132,9.9421473,177.92,177.91,1e-08]
[1754708079905,13.21730685,177.92,177.91,1e-08]
[1754708081034,12.59730685,177.92,177.91,1e-08]
[1754708082839,13.30730685,177.92,177.91,1e-08]
[1754708083136,15.39389749,177.92,177.91,1e-08]
[1754708085505,20.08425582,177.92,177.91,1e-08]
[1754708087636,15.39389749,177.92,177.91,1e-08]
[1754708087938,20.08278413,177.92,177.91,1e-08]
[1754708090132,0.42648471,177.88,177.84,3.27515955]
[1754708090332,39.56648471,177.88,177.84,3.27515955]
[1754708090736,16.895221,177.87,177.84,3.27515955]
[1754708091115,22.51740348,177.87,177.84,3.27515955]
[1754708091316,22.51740348,177.87,177.85,3.27515955]
[1754708091827,5.62218248,177.87,177.85,3.27515955]
[1754708092014,6.04866719,177.87,177.86,0.68]
[1754708092741,11.67254119,177.87,177.85,0.68]
[1754708093147,11.67254119,177.87,177.84,3.27515955]
[1754708093330,6.04866719,177.87,177.84,3.95515955]
[1754708093639,0.42648471,177.86,177.84,0.68]
[1754708093839,0.42648471,177.86,177.83,0.68]
[1754708094028,1.13648471,177.86,177.83,3.95515955]
[1754708094417,0.42648471,177.86,177.84,0.68]
[1754708094617,0.42648471,177.86,177.85,0.68]
[1754708094819,15.53270071,177.86,177.85,0.68]
[1754708095042,0.42648471,177.86,177.85,0.68]
[1754708095232,6.05062471,177.86,177.85,0.68]
[1754708098943,5.62218248,177.87,177.85,0.68]
[1754708099339,11.24632248,177.87,177.85,0.68]
[1754708100628,11.24632248,177.87,177.85,3.95515955]
[1754708103149,11.24632248,177.87,177.85,0.68]
[1754708104125,11.24632248,177.87,177.84,3.98515955]
[1754708104325,11.24632248,177.87,177.85,0.71]
[1754708105746,11.24632248,177.87,177.84,3.98515955]
[1754708106062,11.96632248,177.87,177.84,3.98515955]
[1754708106850,0.72,177.86,177.83,3.33515955]
[1754708107452,11.24632248,177.87,177.83,3.33515955]
[1754708107756,0.72,177.85,177.83,3.33515955]
[1754708108434,6.34246923,177.86,177.83,3.33515955]
[1754708109179,6.34246923,177.86,177.83,4.04515955]
[1754708111150,11.24630167,177.87,177.83,3.33515955]
[1754708111433,11.96630167,177.87,177.84,0.71]
[1754708113162,0.72,177.86,177.83,3.33515955]
[1754708113352,0.72,177.86,177.83,4.04515955]
[1754708114474,11.96630167,177.87,177.83,0.77]
[1754708114759,11.96630167,177.87,177.83,4.04515955]
[1754708115544,0.72,177.86,177.83,4.04515955]
[1754708117363,6.34249778,177.86,177.83,4.04515955]
[1754708119455,6.34249778,177.86,177.83,3.33515955]
[1754708120582,5.62249778,177.86,177.83,0.06]
[1754708120891,0.72,177.85,177.83,3.33515955]
[1754708121972,0.72,177.84,177.83,0.06]
[1754708122176,1.14648471,177.84,177.83,0.06]
[1754708122741,6.76951664,177.84,177.83,0.06]
[1754708122967,10.04467619,177.84,177.83,0.06]
[1754708123145,13.31983619,177.84,177.83,0.06]
[1754708124642,10.04467664,177.84,177.83,0.06]
[1754708127672,6.76951664,177.84,177.83,0.06]
[1754708128275,10.04467619,177.84,177.83,0.06]
[1754708128883,12.13090227,177.84,177.83,0.06]
[1754708129676,6.76951664,177.84,177.83,0.06]
[1754708129853,10.04467619,177.84,177.83,0.06]
[1754708131175,14.08983519,177.84,177.83,0.06]
[1754708131373,10.81467564,177.84,177.83,0.06]
[1754708134069,10.09467564,177.84,177.83,0.77]
[1754708134277,6.04951664,177.84,177.83,0.77]
[1754708134482,6.04951664,177.84,177.83,0.06]
[1754708142585,6.70951664,177.84,177.83,0.06]
[1754708144997,6.73951664,177.84,177.83,0.06]
[1754708145669,6.07951664,177.84,177.83,0.06]
[1754708145865,0.03,177.84,177.83,0.77]
[1754708146102,0.03,177.84,177.83,4.04515955]
[1754708157094,0.03,177.84,177.83,3.33515955]
[1754708160704,0.03,177.84,177.83,0.06]
[1754708160923,0.69,177.84,177.83,0.06]
[1754708162488,0.03,177.84,177.83,3.33515955]
[1754708162792,0.69,177.84,177.83,0.06]
[1754708169304,0.03,177.84,177.83,3.33515955]
[1754708170887,0.03,177.84,177.83,0.06]
[1754708171489,0.7,177.84,177.83,0.06]
[1754708172404,0.03,177.84,177.83,0.06]
[1754708174406,0.03,177.84,177.83,4.02515955]
[1754708177017,0.03,177.84,177.83,3.33515955]
[1754708182316,0.03,177.84,177.83,4.02515955]
[1754708182608,0.03,177.84,177.83,9.64850769]
[1754708184622,0.03,177.84,177.83,0.06]
[1754708184838,0.7,177.84,177.83,3.33515955]
[1754708185317,0.7,177.84,177.83,0.06]
[1754708191233,0.03,177.84,177.83,0.06]
[1754708195928,0.71,177.84,177.83,0.06]
[1754708198504,0.03,177.84,177.83,0.06]
[1754708200825,0.03,177.84,177.83,0.78]
[1754708201008,0.03,177.84,177.83,0.06]
[1754708202018,0.03,177.84,177.83,3.33515955]
[1754708205603,0.03,177.84,177.83,4.05515955]
[1754708209044,0.03,177.84,177.83,3.33515955]
[1754708217621,0.71,177.84,177.83,3.33515955]
[1754708218938,0.71,177.84,177.83,0.06]
[1754708220032,6.33303193,177.84,177.83,0.06]
[1754708220925,6.75951664,177.84,177.83,0.06]
[1754708223823,10.03467619,177.84,177.83,0.06]
[1754708224025,12.12215531,177.84,177.83,0.06]
[1754708224423,10.03467619,177.84,177.83,0.06]
[1754708226642,0.03,177.84,177.83,0.06]
[1754708228847,0.72,177.84,177.83,0.06]
[1754708235159,6.34303193,177.84,177.83,0.06]
[1754708241475,0.72,177.84,177.83,0.06]
[1754708248089,0.03,177.84,177.83,0.06]
[1754708248290,0.03,177.84,177.83,4.01515955]
[1754708251064,0.03,177.84,177.83,9.63850769]
[1754708251463,0.03,177.84,177.83,24.74472326]
[1754708254786,0.03,177.84,177.83,19.12137512]
[1754708256679,0.03,177.84,177.83,24.74472326]
[1754708258495,0.03,177.84,177.83,26.99703826]
[1754708262782,0.03,177.84,177.83,21.37369012]
[1754708267999,0.03,177.84,177.83,20.69369012]
[1754708269796,0.03,177.84,177.83,21.41369012]
[1754708272908,0.03,177.84,177.83,20.69369012]
[1754708275386,0.71,177.84,177.83,3.33515955]
[1754708276792,0.03,177.84,177.83,3.33515955]
[1754708283502,0.03,177.84,177.83,0.06]
[1754708283705,0.03,177.84,177.83,3.33515955]
[1754708287324,0.03,177.84,177.83,5.58760155]
[1754708290314,0.03,177.84,177.83,26.96716526]
[1754708290512,0.03,177.84,177.83,40.06780346]
[1754708290714,0.03,177.84,177.83,26.96716526]
[1754708293618,0.03,177.84,177.83,66.00716526]
[1754708303835,0.03,177.84,177.83,65.35716526]
[1754708305746,0.03,177.84,177.83,66.00716526]
[1754708307149,0.03,177.84,177.83,65.35716526]
[1754708307723,0.03,177.84,177.83,63.10472326]
[1754708312346,0.75,177.84,177.83,39.1]
[1754708312531,0.75,177.84,177.83,42.37515955]
[1754708314143,0.75,177.84,177.83,39.1]
[1754708314340,0.75,177.84,177.83,42.37515955]
[1754708315833,0.75,177.84,177.83,3.33515955]
[1754708317845,0.75,177.84,177.83,0.06]
[1754708318048,0.75,177.84,177.83,3.33515955]
[1754708319651,0.75,177.84,177.83,0.06]
[1754708320742,0.75,177.84,177.83,3.33515955]
[1754708322729,0.75,177.84,177.83,0.06]
[1754708351284,0.03,177.84,177.83,0.06]
[1754708351681,0.03,177.84,177.83,4.05515955]
[1754708352389,0.03,177.84,177.83,3.33515955]
[1754708353993,0.73,177.84,177.83,3.33515955]
[1754708354688,0.03,177.84,177.83,3.33515955]
[1754708356903,0.03,177.84,177.83,8.95850769]
[1754708361502,0.03,177.84,177.83,5.68334814]
[1754708361803,0.03,177.84,177.83,3.33515955]
[1754708369204,0.73,177.84,177.83,0.06]
[1754708371811,0.03,177.84,177.83,4.05515955]
[1754708372402,0.03,177.84,177.83,3.33515955]
[1754708373499,0.03,177.84,177.83,0.06]
[1754708373703,0.73,177.84,177.83,0.06]
[1754708373901,0.73,177.84,177.83,3.33515955]
[1754708375206,0.73,177.84,177.83,0.06]
[1754708384796,6.35303193,177.84,177.83,0.06]
[1754708389114,9.62819148,177.84,177.83,0.06]
[1754708392625,10.05467619,177.84,177.83,0.06]
[1754708393418,49.07467619,177.84,177.83,0.06]
[1754708394098,55.86219243,177.84,177.83,0.06]
[1754708395733,84.11577743,177.84,177.83,0.06]
[1754708396634,84.11433829,177.84,177.83,0.06]
[1754708397844,58.11433829,177.84,177.83,0.06]
[1754708400310,71.21497649,177.84,177.83,0.06]
[1754708400528,58.11433829,177.84,177.83,0.06]
[1754708401424,71.21497649,177.84,177.83,0.06]
[1754708402331,54.83917874,177.84,177.83,0.06]
[1754708402640,58.11433829,177.84,177.83,0.06]
[1754708404333,58.11366958,177.84,177.83,0.06]
[1754708404529,58.11348234,177.84,177.83,0.06]
[1754708407726,53.41466548,177.84,177.83,0.06]
[1754708407921,81.62151925,177.84,177.83,0.06]
[1754708408814,81.62151925,177.84,177.83,1e-08]
[1754708410026,81.6217522,177.84,177.83,1e-08]
[1754708411323,86.31666245,177.84,177.83,1e-08]
[1754708412355,81.6217522,177.84,177.83,1e-08]
[1754708412856,84.39840185,177.84,177.83,1e-08]
[1754708415053,86.39216564,177.84,177.83,1e-08]
[1754708415357,92.49092584,177.84,177.83,1e-08]
[1754708418727,90.4042886,177.84,177.83,1e-08]
[1754708418928,92.49093417,177.84,177.83,1e-08]
[1754708422655,0.42648471,177.8,177.79,0.06]
[1754708422971,42.72164426,177.8,177.79,0.06]
[1754708423336,44.97586426,177.8,177.79,0.06]
[1754708423845,50.60016122,177.8,177.79,0.06]
[1754708425154,51.31016122,177.8,177.79,0.06]
[1754708425656,50.60016122,177.8,177.79,0.06]
[1754708429456,76.60016122,177.8,177.79,0.06]
[1754708432261,78.68611759,177.8,177.79,0.06]
[1754708432464,76.60016122,177.8,177.79,0.06]
[1754708432649,76.60016122,177.8,177.79,0.74]
[1754708435060,76.60016122,177.8,177.79,0.06]
[1754708436380,81.29306093,177.8,177.79,0.06]
[1754708437364,83.38189538,177.8,177.79,0.06]
[1754708437981,78.68899567,177.8,177.79,0.06]
[1754708438278,76.60016122,177.8,177.79,0.77]
[1754708438483,47.91945651,177.8,177.79,0.77]
[1754708438955,48.34594122,177.8,177.79,0.77]
[1754708439280,48.20377965,177.8,177.79,0.77]
[1754708439499,51.68110022,177.8,177.79,0.77]
[1754708440173,51.68110022,177.8,177.79,0.06]
[1754708441657,58.46343581,177.8,177.79,0.06]
[1754708441995,59.12343581,177.8,177.79,0.06]
[1754708442770,54.4305361,177.8,177.79,0.06]
[1754708443981,54.4305361,177.8,177.78,0.06]
[1754708443982,0.42648471,177.79,177.78,0.06]
[1754708444278,21.55729571,177.79,177.78,1e-08]
[1754708445181,23.81176971,177.79,177.78,1e-08]
[1754708445586,25.8055335,177.79,177.78,1e-08]
[1754708445880,37.528907,177.79,177.78,1e-08]
[1754708446178,26.42648471,177.76,177.75,0.06]
[1754708446357,75.50918425,177.76,177.75,0.06]
[1754708446562,76.16918425,177.76,177.75,0.06]
[1754708446786,78.42391225,177.76,177.75,0.06]
[1754708447275,76.33447637,177.76,177.75,0.06]
[1754708447466,71.63637226,177.76,177.75,0.06]
[1754708447872,77.26193481,177.76,177.75,0.06]
[1754708451286,76.60193481,177.76,177.75,0.06]
[1754708451460,70.54988755,177.76,177.75,0.77]
[1754708451667,67.274728,177.76,177.75,0.77]
[1754708451867,41.274728,177.76,177.75,0.77]
[1754708452177,41.70121271,177.76,177.75,0.77]
[1754708452773,47.32677526,177.76,177.75,0.77]
[1754708454011,39.16216157,177.76,177.75,0.77]
[1754708458495,39.16216157,177.76,177.75,0.06]
[1754708459203,44.78772412,177.76,177.75,0.06]
[1754708461998,39.16216157,177.76,177.75,0.06]
[1754708462206,39.16216157,177.76,177.75,0.77]
[1754708462882,39.16216157,177.76,177.75,0.06]
[1754708463905,45.07204726,177.76,177.75,0.06]
[1754708464103,48.34720681,177.76,177.75,0.06]
[1754708464614,48.99720681,177.76,177.75,0.06]
[1754708465001,45.72204726,177.76,177.75,0.06]
[1754708465197,45.07204726,177.76,177.75,0.06]
[1754708465790,45.07204726,177.76,177.75,0.78]
[1754708465998,39.44648471,177.76,177.75,0.78]
[1754708466508,39.44648471,177.76,177.75,0.06]
[1754708466892,45.07204726,177.76,177.75,0.06]
[1754708469711,45.72204726,177.76,177.75,0.06]
[1754708469912,48.99720681,177.76,177.75,0.06]
[1754708470322,53.05236681,177.76,177.75,0.06]
[1754708471916,52.40236681,177.76,177.75,0.06]
[1754708472113,49.12720726,177.76,177.75,0.06]
[1754708472894,49.12720726,177.76,177.75,0.78]
[1754708472895,43.21732157,177.76,177.75,0.78]
[1754708473095,39.16216157,177.76,177.75,0.78]
[1754708473598,0.14216157,177.76,177.75,0.78]
[1754708474712,39.02,177.77,177.75,0.78]
[1754708475214,39.16216157,177.77,177.76,0.72]
[1754708476309,0.14216157,177.77,177.76,0.72]
[1754708476816,0.14216157,177.77,177.75,0.06]
[1754708477033,0.14216157,177.77,177.75,0.78]
[1754708479202,0.14216157,177.76,177.75,0.06]
[1754708480192,0.79216157,177.76,177.75,0.06]
[1754708482526,6.41772412,177.76,177.75,0.06]
[1754708483409,45.41772412,177.76,177.75,0.06]
[1754708484808,45.70204726,177.76,177.75,0.06]
[1754708485124,48.97720681,177.76,177.75,0.06]
[1754708485422,51.23155281,177.76,177.75,0.06]
[1754708488014,77.23155281,177.76,177.75,0.06]
[1754708488216,84.02406973,177.76,177.75,0.06]
[1754708490326,77.23155281,177.76,177.75,0.06]
[1754708492328,84.02380845,177.76,177.75,0.06]
[1754708492511,76.04721739,177.76,177.75,0.06]
[1754708492711,79.32237694,177.76,177.75,0.06]
[1754708492914,84.02380845,177.76,177.75,0.06]
[1754708493523,81.93298432,177.76,177.75,0.06]
[1754708493728,84.0237379,177.76,177.75,0.06]
[1754708496329,77.23155281,177.76,177.75,0.06]
[1754708497720,84.02348039,177.76,177.75,0.06]
[1754708498120,77.23155281,177.76,177.75,0.06]
[1754708500631,84.02307418,177.76,177.75,0.06]
[1754708504136,77.23155281,177.76,177.75,0.06]
[1754708506940,84.02265285,177.76,177.75,0.06]
[1754708508042,26.42648471,177.74,177.73,0.2]
[1754708508239,68.72164426,177.74,177.73,0.2]
[1754708508743,69.38164426,177.74,177.73,0.2]
[1754708509243,77.26282182,177.74,177.73,0.2]
[1754708511919,92.36903739,177.74,177.73,0.2]
[1754708514848,92.36903739,177.74,177.73,1e-08]
[1754708517353,107.25128747,177.74,177.73,1e-08]
[1754708517552,100.46156138,177.74,177.73,1e-08]
[1754708518250,15.53270028,177.73,177.71,1e-08]
[1754708518550,42.72164426,177.72,177.71,1e-08]
[1754708518751,43.38164426,177.72,177.71,1e-08]
[1754708518936,44.97688126,177.72,177.71,1e-08]
[1754708519345,47.32855042,177.72,177.71,0.69000001]
[1754708519528,50.60370997,177.72,177.71,0.69000001]
[1754708519733,47.32855042,177.72,177.71,1e-08]
[1754708520045,50.60370997,177.72,177.71,1e-08]
[1754708521742,51.26370997,177.72,177.71,1e-08]
[1754708522844,66.36992554,177.72,177.71,1e-08]
[1754708524749,73.16161799,177.72,177.71,1e-08]
[1754708524957,68.46018648,177.72,177.71,1e-08]
[1754708525148,66.36992554,177.72,177.71,1e-08]
[1754708525353,68.46020723,177.72,177.71,1e-08]
[1754708525535,66.36992554,177.72,177.71,1e-08]
[1754708528665,50.60370997,177.72,177.71,1e-08]
[1754708528857,50.60370997,177.72,177.71,0.71000001]
[1754708529555,50.60370997,177.72,177.71,1e-08]
[1754708530249,50.60370997,177.72,177.71,0.71000001]
[1754708530840,11.58370997,177.72,177.71,0.71000001]
[1754708531042,50.60370997,177.72,177.71,1e-08]
[1754708532444,11.58370997,177.72,177.71,1e-08]
[1754708532967,76.60370997,177.72,177.71,1e-08]